fUSD/lending_fUSD_20260309
["ID","MTS","AMOUNT","RATE_DAILY","PERIOD"]
[408026504,1773045042488,-250.0,0.00019727,2]
[408026505,1773045042497,-205.23130806,0.00019727,2]
[408026506,1773045042506,-646.01614418,0.00019727,2]
[408026507,1773045042515,-500.0,0.00019727,2]
[408026508,1773045042524,-452.35755136,0.00019727,2]
[408026509,1773045042534,-156.0,0.00019727,2]
[408026510,1773045042543,-706.0,0.00019727,2]
[408026511,1773045042552,-500.0,0.00019727,2]
[408026512,1773045042561,-500.0,0.00019727,2]
[408026513,1773045042570,-425.0,0.00019727,2]
[408026514,1773045042579,-171.0,0.00019754,2]
[408026515,1773045042588,-4285.4016009,0.00019759,2]
[408026516,1773045042597,-250.0,0.00019765,2]
[408026517,1773045042607,-171.0,0.00019765,2]
[408026518,1773045042616,-4214.566868,0.0001977,7]
[408026519,1773045042625,-5219.906268,0.0001977,7]
[408026520,1773045042634,-250.0,0.00019771,2]
[408026521,1773045042644,-276.9,0.00019774,2]
[408026522,1773045042653,-184.22758356,0.00019777,2]
[408026523,1773045042663,-500.0,0.00019782,2]
[408026524,1773045042672,-500.0,0.00019782,2]
[408026525,1773045042681,-500.0,0.00019782,2]
[408026526,1773045042691,-554.0,0.00019782,2]
[408026527,1773045042700,-500.0,0.00019782,2]
[408026528,1773045042709,-849.0,0.00019782,2]
[408026529,1773045042718,-500.0,0.00019782,2]
[408026530,1773045042727,-150.0,0.00019782,2]
[408026531,1773045042736,-500.0,0.00019782,2]
[408026532,1773045042745,-500.0,0.00019782,2]
[408026533,1773045042755,-500.0,0.00019782,2]
[408026534,1773045042765,-706.0,0.00019782,2]
[408026535,1773045042774,-500.0,0.00019782,2]
[408026536,1773045042783,-425.0,0.00019782,2]
[408026537,1773045042792,-187.78006525,0.00019797,2]
[408026538,1773045042801,-262.90206542,0.00019797,2]
[408026539,1773045042810,-312.13772435,0.00019797,2]
[408026540,1773045042820,-5555.0,0.000198,2]
[408026541,1773045042829,-300.0,0.000198,7]
[408026542,1773045042838,-300.0,0.000198,7]
[408026543,1773045042847,-1032.8932931,0.000198,2]
[408026544,1773045042856,-500.0,0.00019809,2]
[408026545,1773045042865,-500.0,0.00019809,2]
[408026546,1773045042874,-500.0,0.00019809,2]
[408026547,1773045042884,-463.4000001,0.00019809,2]
[408026548,1773045042894,-500.0,0.00019809,2]
[408026549,1773045042903,-505.88225533,0.00019809,2]
[408026550,1773045042912,-133170.63393883,0.0001981,2]
[408026551,1773045042922,-273.8617254,0.0001981,2]
[408026552,1773045042932,-250.0,0.0001981,2]
[408026553,1773045042941,-555.0,0.00019826,2]
[408026554,1773045042950,-150.0,0.00019826,2]
[408026555,1773045042959,-150.0,0.00019826,2]
[408026557,1773045042968,-150.0,0.00019826,2]
[408026559,1773045042978,-150.0,0.00019826,2]
[408026560,1773045042987,-259.0,0.00019826,2]
[408026561,1773045042996,-640.216923,0.00019828,2]
[408026562,1773045043005,-250.0,0.00019836,2]
[408026563,1773045043014,-500.0,0.00019837,2]
[408026564,1773045043023,-500.0,0.00019837,2]
[408026565,1773045043032,-500.0,0.00019837,2]
[408026567,1773045043041,-554.0,0.00019837,2]
[408026568,1773045043050,-849.0,0.00019837,2]
[408026569,1773045043059,-500.0,0.00019837,2]
[408026570,1773045043068,-514.75697176,0.00019837,2]
[408026571,1773045043077,-250.0,0.00019837,2]
[408026572,1773045043087,-245.0,0.00019837,2]
[408026573,1773045043096,-500.0,0.00019837,2]
[408026574,1773045043106,-500.0,0.00019837,2]
[408026575,1773045043115,-706.0,0.00019837,2]
[408026576,1773045043125,-500.0,0.00019837,2]
[408026577,1773045043134,-425.0,0.00019837,2]
[408026578,1773045043143,-200.0,0.0001984,2]
[408026579,1773045043153,-250.0,0.00019872,3]
[408026580,1773045043162,-500.0,0.00019873,2]
[408026581,1773045043171,-500.0,0.00019873,2]
[408026582,1773045043181,-501.66559118,0.00019873,2]
[408026583,1773045043190,-500.0,0.00019873,2]
[408026584,1773045043199,-500.0,0.00019873,2]
[408026585,1773045043209,-276.9,0.00019887,2]
[408026586,1773045043218,-500.0,0.0001989,2]
[408026587,1773045043228,-25000.0,0.00019891,3]
[408026588,1773045043239,-25000.0,0.00019891,3]
[408026589,1773045043250,-500.0,0.00019892,2]
[408026590,1773045043259,-500.0,0.00019892,2]
[408026591,1773045043270,-437.84963494,0.00019892,2]
[408026592,1773045043279,-554.0,0.00019892,2]
[408026593,1773045043288,-849.0,0.00019892,2]
[408026594,1773045043297,-500.0,0.00019892,2]
[408026595,1773045043307,-500.0,0.00019892,2]
[408026596,1773045043317,-500.0,0.00019892,2]
[408026597,1773045043327,-706.0,0.00019892,2]
[408026598,1773045043337,-500.0,0.00019892,2]
[408026599,1773045043350,-425.0,0.00019892,2]
[408026600,1773045043360,-500.0,0.00019899,2]
[408026601,1773045043371,-500.0,0.00019899,2]
[408026602,1773045043383,-500.0,0.00019899,2]
[408026603,1773045043394,-500.0,0.00019899,2]
[408026604,1773045043403,-877.07340192,0.000199,2]
[408026605,1773045043414,-1371.3187804,0.000199,2]
[408026606,1773045043424,-4647.01558602,0.000199,3]
[408026607,1773045043434,-2000.0,0.000199,2]
[408026608,1773045043443,-967.1067069,0.000199,2]
[408026609,1773045043453,-25000.0,0.000199,3]
[408026610,1773045043464,-2000.0,0.000199,2]
[408026611,1773045043474,-9512.0,0.000199,2]
[408026612,1773045043483,-2000.0,0.000199,2]
[408026613,1773045043492,-5231.0,0.000199,2]
[408026614,1773045043502,-25000.0,0.000199,3]
[408026615,1773045043513,-6894.83797613,0.000199,2]
[408026616,1773045043523,-250.0,0.000199,3]
[408026617,1773045043533,-900.79761069,0.000199,2]
[408026618,1773045043543,-645.0,0.000199,7]
[408026619,1773045043552,-4285.4016009,0.000199,2]
[408026620,1773045043562,-679.0,0.000199,7]
[408026621,1773045043572,-760.65660086,0.000199,2]
[408026622,1773045043581,-8531.31265296,0.000199,2]
[408026623,1773045043590,-4819.04359242,0.000199,2]
[408026624,1773045043600,-2091.0,0.000199,2]
[408026625,1773045043609,-1000.0,0.00019921,2]
[408026626,1773045043618,-1000.0,0.00019921,2]
[408026627,1773045043628,-250.0,0.00019931,3]
[408026628,1773045043638,-250.0,0.00019946,3]
[408026629,1773045043648,-500.0,0.00019947,2]
[408026630,1773045043861,-500.0,0.00019947,2]
[408026631,1773045043872,-554.0,0.00019947,2]
[408026632,1773045043882,-849.0,0.00019947,2]
[408026633,1773045043894,-500.0,0.00019947,2]
[408026634,1773045043903,-500.0,0.00019947,2]
[408026635,1773045043913,-340.05274297,0.00019947,2]
[408026636,1773045043922,-706.0,0.00019947,2]
[408026637,1773045043932,-500.0,0.00019947,2]
[408026638,1773045043941,-425.0,0.00019947,2]
[408026639,1773045043951,-150.0,0.00019973,2]
[408026640,1773045043960,-3664.0,0.00019973,2]
[408026641,1773045043970,-250.0,0.0001998,3]
[408026642,1773045043980,-3035.04861848,0.00019988,2]
[408026643,1773045043990,-800.0,0.0001999,2]
[408026644,1773045044000,-224.6572188,0.0001999,3]
[408026645,1773045044009,-363.7579418,0.0001999,2]
[408026646,1773045044018,-363.7579418,0.0001999,2]
[408026647,1773045044028,-363.7579418,0.0001999,2]
[408026648,1773045044037,-151.0,0.00019997,2]
[408026649,1773045044046,-151.0,0.00019997,2]
[408026650,1773045044056,-500.0,0.00019998,2]
[408026651,1773045044065,-500.0,0.00019998,2]
[408026652,1773045044074,-155.509,0.00019999,2]
[408026653,1773045044084,-617.9,0.00019999,2]
[408026654,1773045044093,-500.0,0.00019999,2]
[408026655,1773045044103,-500.0,0.00019999,2]
[408026656,1773045044113,-500.0,0.00019999,2]
[408026657,1773045044122,-500.0,0.00019999,2]
[408026658,1773045044131,-500.0,0.00019999,2]
[408026659,1773045044141,-500.0,0.00019999,2]
[408026660,1773045044151,-500.0,0.00019999,2]
[408026661,1773045044160,-500.0,0.00019999,2]
[408026662,1773045044170,-500.0,0.00019999,2]
[408026663,1773045044179,-500.0,0.00019999,2]
[408026664,1773045044189,-504.66308381,0.00019999,2]
[408026665,1773045044199,-500.0,0.00019999,2]
[408026666,1773045044208,-504.92020981,0.00019999,2]
[408026667,1773045044219,-500.0,0.00019999,2]
[408026668,1773045044228,-500.0,0.00019999,2]
[408026669,1773045044238,-500.0,0.00019999,2]
[408026670,1773045044248,-500.0,0.00019999,2]
[408026671,1773045044258,-500.0,0.00019999,2]
[408026672,1773045044267,-500.0,0.00019999,2]
[408026673,1773045044276,-500.0,0.00019999,2]
[408026674,1773045044285,-500.0,0.00019999,2]
[408026675,1773045044294,-500.0,0.00019999,2]
[408026676,1773045044303,-500.0,0.00019999,2]
[408026677,1773045044313,-500.0,0.00019999,2]
[408026678,1773045044322,-500.0,0.00019999,2]
[408026679,1773045044333,-500.0,0.00019999,2]
[408026680,1773045044343,-500.0,0.00019999,2]
[408026681,1773045044352,-500.0,0.00019999,2]
[408026682,1773045044361,-500.0,0.00019999,2]
[408026683,1773045044371,-500.0,0.00019999,2]
[408026684,1773045044382,-500.0,0.00019999,2]
[408026685,1773045044392,-500.0,0.00019999,2]
[408026686,1773045044401,-500.0,0.00019999,2]
[408026687,1773045044412,-500.0,0.00019999,2]
[408026688,1773045044421,-500.0,0.00019999,2]
[408026689,1773045044430,-437.89413426,0.00019999,2]
[408026690,1773045044440,-421.36225386,0.00019999,2]
[408026691,1773045044450,-438.23827049,0.00019999,2]
[408026692,1773045044460,-500.0,0.00019999,2]
[408026693,1773045044469,-190.59471064,0.00019999,2]
[408026694,1773045044478,-500.0,0.00019999,2]
[408026695,1773045044488,-500.0,0.00019999,2]
[408026696,1773045044498,-500.0,0.00019999,2]
[408026697,1773045044507,-385.7745986,0.00019999,2]
[408026698,1773045044516,-2613.0,0.0002,2]
[408026699,1773045044525,-59335.8886318,0.0002,2]
[408026700,1773045044552,-4920.877,0.0002,2]
[408026701,1773045044563,-536.98227176,0.0002,2]
[408026704,1773045045486,-1342.0,0.00019874,2]
[408026705,1773045045495,-76841.40121796,0.0002,2]
[408026706,1773045045532,-1744.64651126,0.0002,2]
[408026707,1773045045807,-4400.3678802,0.0002,2]
[408026710,1773045266835,-170.9,0.00014,2]
[408026711,1773045437363,-1992.66,0.000135,2]
[408026712,1773045438071,1149.91,0.000135,2]
[408026713,1773045448974,460.75,0.000135,2]
[408026714,1773045488187,-460.74,0.000135,2]
[408026715,1773045504465,-172.76,0.00014,2]
[408026716,1773045537557,-513.0,0.000148,3]
[408026717,1773045537590,-1200.0,0.00014999,2]
[408026718,1773045537619,-300.0,0.00014999,2]
[408026719,1773045537650,-500.0,0.00015,30]
[408026720,1773045537679,-922.66679123,0.00015,30]
[408026721,1773045537707,-500.0,0.00015,30]
[408026722,1773045537737,-489.20351924,0.00015,30]
[408026723,1773045540407,-4467.01,0.000151,5]
[408026724,1773045543472,-1065.99,0.000151,5]
[408026725,1773045543504,-172.76,0.0001595,2]
[408026726,1773045543534,-2500.0,0.00016499,2]
[408026727,1773045543563,-495.7,0.00016499,2]
[408026728,1773045546508,-1531.11,0.00016499,2]
[408026729,1773045546541,-1680.0,0.00016499,2]
[408026732,1773045623857,-164.0,0.00014,3]
[408026733,1773045630923,217.52280661,8.751e-05,2]
[408026734,1773045639558,271.90350826,9.751e-05,2]
[408026735,1773045639892,271.90350826,0.00010751,7]
[408026736,1773045640099,326.28420991,0.00012751,7]
[408026737,1773045686562,-508.99997,0.00017,2]
[408026738,1773045686594,-195.0,0.0001745,2]
[408026739,1773045686624,-801.97398632,0.00017808,2]
[408026740,1773045686653,-195.0,0.00017877,2]
[408026741,1773045686681,-195.0,0.00017877,2]
[408026742,1773045686712,-196.25174727,0.00017877,2]
[408026743,1773045686742,-172.76,0.000179,2]
[408026744,1773045686771,-200.479585,0.00018,2]
[408026745,1773045686798,-551.0,0.00018154,2]
[408026746,1773045686826,-367.0,0.00018182,2]
[408026747,1773045686854,-1200.0,0.00018355,2]
[408026748,1773045686883,-233.07942282,0.00018356,7]
[408026749,1773045687638,-366.92057718,0.00018356,7]
[408026750,1773045687665,-558.17,0.00018358,2]
[408026751,1773045687691,-2000.0,0.00018474,2]
[408026752,1773045687719,-500.0,0.00018521,2]
[408026753,1773045687746,-172.87392778,0.00018546,2]
[408026754,1773045687779,-500.0,0.00018603,2]
[408026755,1773045687805,-150.0,0.00018653,2]
[408026756,1773045687832,-195.0,0.000187,2]
[408026757,1773045687863,-535.871747,0.00018701,2]
[408026758,1773045687896,-42.33749608,0.00018701,2]
[408026759,1773045687924,-800.0,0.00018733,2]
[408026760,1773045687953,-517.33931831,0.00018734,2]
[408026761,1773045687983,-150.99,0.00018734,2]
[408026762,1773045688012,-1476.68,0.00018734,2]
[408026763,1773045688057,-1840.07,0.00018734,2]
[408026764,1773045689442,-3680.14,0.00018734,2]
[408026765,1773045689473,-2187.86856346,0.00018734,2]
[408026766,1773045689566,-451.86143654,0.00018734,2]
[408026767,1773045689596,-500.0,0.00018734,2]
[408026768,1773045689627,-719.21,0.00018734,2]
[408026769,1773045689694,-6657.86712692,0.00018734,2]
[408026770,1773045689728,-3342.12287308,0.00018734,2]
[408026771,1773045689756,-299.99,0.00018734,4]
[408026772,1773045689785,-500.0,0.00018734,2]
[408026773,1773045689814,-500.0,0.00018734,2]
[408026774,1773045689843,-215.78425384,0.00018734,2]
[408026775,1773045689932,-284.21574616,0.00018734,2]
[408026776,1773045693095,-800.0,0.00018356,7]
[408026777,1773045693123,-700.0,0.00018356,7]
[408026778,1773045693150,-500.0,0.00018734,2]
[408026779,1773045693177,-500.0,0.00018734,2]
[408026780,1773045693203,-500.0,0.00018734,2]
[408026781,1773045693230,-500.0,0.00018734,2]
[408026782,1773045693256,-220.0,0.00018734,2]
[408026783,1773045693283,-500.0,0.00018738,2]
[408026784,1773045693311,-154.66,0.00018788,2]
[408026785,1773045693337,-511.0,0.00018822,2]
[408026786,1773045693373,-500.0,0.0001884,2]
[408026787,1773045693403,-500.0,0.0001884,2]
[408026788,1773045693432,-500.0,0.0001884,2]
[408026789,1773045693462,-500.0,0.0001884,2]
[408026790,1773045693493,-500.0,0.0001884,2]
[408026791,1773045693521,-500.0,0.00018841,2]
[408026792,1773045693550,-500.0,0.0001897,2]
[408026793,1773045693580,-174.61919141,0.0001897,2]
[408026794,1773045693984,-54.07080859,0.00018981,2]
[408026795,1773045693999,-174.61919141,0.00018981,2]
[408026796,1773045694020,-2650.77161718,0.00018981,2]
[408026797,1773045711881,-450.0,0.00017775,2]
[408026798,1773045724012,505.0,0.00017,2]
[408026799,1773045745305,-505.0,0.00018575,3]
[408026800,1773045745333,-500.0,0.00018701,2]
[408026801,1773045745361,-450.0,0.00018711,30]
[408026802,1773045745435,-6640.01,0.00018711,2]
[408026803,1773045745525,-10000.01,0.00018711,2]
[408026804,1773045745688,-10000.01,0.00018711,2]
[408026805,1773045745870,-10000.01,0.00018711,2]
[408026806,1773045974254,-180.89,0.00014,2]
[408026808,1773046202206,-180.20408328,0.00016,2]
[408026809,1773046202235,-180.89,0.000166,2]
[408026810,1773046202262,-500.0,0.000166,2]
[408026811,1773046202290,-505.0,0.00017,2]
[408026812,1773046202319,-195.0,0.0001707,2]
[408026813,1773046202347,-300.0,0.00017599,2]
[408026814,1773046202376,-1200.0,0.00017599,2]
[408026815,1773046202403,-450.0,0.000176,2]
[408026816,1773046202430,-300.36723807,0.000176,2]
[408026817,1773046202457,-179.49839145,0.000176,2]
[408026818,1773046202485,-215.67872618,0.000176,2]
[408026819,1773046202512,-300.0,0.000176,2]
[408026820,1773046202539,-195.0,0.000176,2]
[408026821,1773046202771,-596.73312204,0.00018152,2]
[408026829,1773046231572,-152.0,0.00017878,3]
[408026830,1773046231583,-294.90007245,0.00018152,2]
[408026831,1773046231624,-3366.41635782,0.00018152,2]
[408026832,1773046231683,-1476.60044769,0.00018152,2]
[408026833,1773046231692,-1600.0,0.00018195,2]
[408026834,1773046231702,-1852.42,0.00018256,2]
[408026835,1773046231712,-474.29602371,0.00018263,2]
[408026836,1773046231723,-152.0,0.00018349,4]
[408026837,1773046231732,-800.0,0.00018356,7]
[408026838,1773046231741,-700.0,0.00018356,7]
[408026839,1773046231752,-2806.0,0.000184,2]
[408026840,1773046231762,-774.49266639,0.00018501,2]
[408026841,1773046231773,-505.36254135,0.00018502,2]
[408026858,1773046232093,-500.0,0.00018601,2]
[408026859,1773046232114,-1500.0,0.00018605,2]
[408026860,1773046232124,-2050.57456803,0.0001862,2]
[408026861,1773046232133,-4006.03701615,0.00018628,2]
[408026862,1773046232142,-505.0,0.00018658,3]
[408026863,1773046232151,-172.87392778,0.00018706,2]
[408026864,1773046232161,-1916.6605319,0.00018711,2]
[408026865,1773046232170,-3045.9768678,0.00018713,2]
[408026866,1773046232180,-3136.1063684,0.00018713,2]
[408026867,1773046232190,-7151.9458104,0.00018713,2]
[408026868,1773046232199,-2050.574568,0.00018713,2]
[408026869,1773046232208,-4067.72000362,0.00018714,2]
[408026870,1773046232218,-847.0,0.0001872,2]
[408026871,1773046232227,-1330.0,0.0001872,2]
[408026872,1773046232236,-850.0,0.00018723,2]
[408026873,1773046232245,-15711.9564038,0.00018724,2]
[408026874,1773046232254,-4922.9649072,0.00018724,2]
[408026875,1773046232264,-500.0,0.00018734,2]
[408026876,1773046232274,-500.0,0.00018734,2]
[408026877,1773046232284,-500.0,0.00018734,2]
[408026878,1773046232294,-170.24903507,0.00018734,2]
[408026879,1773046232303,-500.0,0.00018734,2]
[408026880,1773046232312,-500.0,0.00018734,2]
[408026881,1773046232321,-182.5,0.00018747,2]
[408026882,1773046232330,-413.0,0.00018753,2]
[408026883,1773046232340,-2050.574568,0.00018806,2]
[408026884,1773046232349,-152.0,0.0001882,5]
[408026885,1773046232358,-170.24903507,0.00018834,2]
[408026886,1773046232367,-442.86541715,0.0001884,2]
[408026887,1773046232377,-182.5,0.00018861,2]
[408026888,1773046232386,-644.65063515,0.00018862,2]
[408026889,1773046232394,-500.0,0.00018871,2]
[408026890,1773046232403,-500.0,0.00018888,2]
[408026891,1773046232412,-151.0,0.00018888,2]
[408026892,1773046232421,-174.61919141,0.00018888,2]
[408026893,1773046232430,-262.90206542,0.00018888,2]
[408026894,1773046232439,-2598.83683708,0.00018899,2]
[408026901,1773046237846,-170.24903508,0.00018747,2]
[408026902,1773046237855,-135.26258695,0.00018899,2]
[408026903,1773046237864,-225.62132791,0.00018899,2]
[408026904,1773046237900,-348.7257166,0.00018899,2]
[408026913,1773046240047,-1476.22752349,0.00018899,2]
[408026914,1773046240059,-151.0,0.00018943,2]
[408026915,1773046240069,-182.5,0.00018975,2]
[408026916,1773046240080,-1044.10838282,0.00018981,2]
[408026917,1773046240091,-151.0,0.00018998,2]
[408026918,1773046240101,-500.0,0.00018999,2]
[408026919,1773046240111,-2726.09,0.00018999,2]
[408026920,1773046240122,-1847.95,0.00018999,2]
[408026921,1773046240132,-800.0,0.00019,6]
[408026922,1773046240144,-220.0,0.00019008,2]
[408026923,1773046240155,-162.63455783,0.00019014,2]
[408026924,1773046240165,-2914.0,0.00019014,2]
[408026925,1773046240176,-500.0,0.00019029,2]
[408026926,1773046240186,-953.72854499,0.00019034,2]
[408026927,1773046240201,-608.0,0.00019035,2]
[408026928,1773046240214,-847.0,0.0001904,2]
[408026929,1773046240223,-151.0,0.00019053,2]
[408026930,1773046240232,-270.0,0.00019064,2]
[408026931,1773046240241,-182.5,0.00019089,2]
[408026932,1773046240251,-500.0,0.000191,2]
[408026933,1773046240261,-1700.0,0.000191,6]
[408026934,1773046240274,-479.7863268,0.00019104,2]
[408026935,1773046240284,-2914.0,0.00019106,2]
[408026936,1773046240293,-151.0,0.00019108,2]
[408026937,1773046240303,-162.63455783,0.00019151,2]
[408026938,1773046240312,-608.0,0.00019156,2]
[408026939,1773046240322,-151.0,0.00019163,2]
[408026940,1773046240331,-610.12074509,0.00019176,2]
[408026941,1773046240341,-1000.0,0.00019178,2]
[408026942,1773046240350,-180.89,0.000192,2]
[408026943,1773046240360,-2600.0,0.000192,7]
[408026944,1773046240370,-182.5,0.00019203,2]
[408026945,1773046240379,-168.16761566,0.00019205,2]
[408026946,1773046240388,-159.30201298,0.00019205,2]
[408026947,1773046240398,-420.0,0.0001921,2]
[408026948,1773046240407,-558.17,0.00019276,2]
[408026949,1773046240417,-220.0,0.00019282,2]
[408026950,1773046240426,-162.63455783,0.00019288,2]
[408026951,1773046240436,-152.0,0.00019291,6]
[408026952,1773046240449,-3500.0,0.000193,7]
[408026953,1773046240458,-1475.0,0.00019305,2]
[408026954,1773046240468,-182.5,0.00019317,2]
[408026955,1773046240477,-608.0,0.00019333,2]
[408026956,1773046240487,-1847.96,0.00019335,2]
[408026957,1773046240496,-153.40246871,0.00019347,2]
[408026958,1773046240505,-163.0,0.0001936,2]
[408026959,1773046240514,-2644.0,0.0001936,2]
[408026960,1773046240523,-500.0,0.00019384,2]
[408026961,1773046240533,-214.1,0.000194,2]
[408026962,1773046240543,-4400.0,0.000194,7]
[408026963,1773046240552,-608.0,0.00019414,2]
[408026964,1773046240562,-159.30201297,0.00019425,2]
[408026965,1773046240571,-168.16761566,0.00019425,2]
[408026966,1773046240581,-162.63455783,0.00019425,2]
[408026967,1773046240591,-159.30201298,0.00019425,2]
[408026968,1773046240600,-182.5,0.0001943,2]
[408026969,1773046240609,-181.08010149,0.00019436,2]
[408026970,1773046240619,-272.62944185,0.00019436,2]
[408026971,1773046240628,-800.0,0.00019452,7]
[408026972,1773046240638,-700.0,0.00019452,7]
[408026973,1773046240647,-1000.0,0.00019452,2]
[408026974,1773046240660,-800.0,0.000195,7]
[408026975,1773046240669,-182.5,0.00019544,2]
[408026976,1773046240679,-220.0,0.00019556,2]
[408026977,1773046240694,-162.63455783,0.00019562,2]
[408026978,1773046240704,-1168.32,0.00019575,2]
[408026979,1773046240713,-170.06448864,0.00019578,2]
[408026980,1773046240722,-172.16862432,0.000196,2]
[408026981,1773046240733,-800.0,0.000196,7]
[408026982,1773046240742,-665.0,0.00019606,2]
[408026983,1773046240751,-302.2226,0.00019611,2]
[408026984,1773046240762,-211.92100857,0.00019618,2]
[408026985,1773046240771,-500.0,0.00019618,2]
[408026986,1773046240780,-150.0,0.00019618,2]
[408026987,1773046240789,-500.0,0.00019618,2]
[408026988,1773046240798,-500.0,0.00019618,2]
[408026989,1773046240807,-2734.506,0.00019618,2]
[408026990,1773046240817,-181.737,0.00019618,2]
[408026991,1773046240826,-150.0,0.00019618,2]
[408026992,1773046240835,-500.0,0.00019618,2]
[408026993,1773046240844,-150.0,0.00019618,2]
[408026994,1773046240854,-500.0,0.00019618,2]
[408026995,1773046240863,-492.0,0.00019618,2]
[408026996,1773046240872,-1045.0,0.00019618,2]
[408026997,1773046240882,-500.0,0.00019618,2]
[408026998,1773046240891,-150.0,0.00019618,2]
[408026999,1773046240901,-150.0,0.00019618,2]
[408027000,1773046240911,-500.0,0.00019618,2]
[408027001,1773046240920,-500.0,0.00019618,2]
[408027002,1773046240931,-150.0,0.00019618,2]
[408027003,1773046240940,-500.0,0.00019618,2]
[408027004,1773046240949,-150.0,0.00019618,2]
[408027005,1773046240958,-150.0,0.00019618,2]
[408027006,1773046240968,-500.0,0.00019618,2]
[408027007,1773046240978,-150.0,0.00019618,2]
[408027008,1773046240988,-500.0,0.00019618,2]
[408027009,1773046240999,-500.0,0.00019618,2]
[408027010,1773046241009,-863.0,0.00019618,2]
[408027011,1773046241018,-500.0,0.00019618,2]
[408027012,1773046241027,-500.0,0.00019618,2]
[408027013,1773046241041,-895.0,0.00019618,2]
[408027014,1773046241050,-500.0,0.00019618,2]
[408027015,1773046241060,-1828.0,0.00019618,2]
[408027016,1773046241069,-182.5,0.00019658,2]
[408027017,1773046241078,-575.20339412,0.00019658,2]
[408027018,1773046241089,-1428.38747117,0.00019661,2]
[408027019,1773046241098,-500.0,0.00019661,2]
[408027020,1773046241107,-500.0,0.00019661,2]
[408027021,1773046241116,-500.0,0.00019661,2]
[408027022,1773046241125,-500.0,0.00019661,2]
[408027023,1773046241134,-500.0,0.00019661,2]
[408027024,1773046241144,-500.0,0.00019661,2]
[408027025,1773046241153,-500.0,0.00019661,2]
[408027026,1773046241162,-500.0,0.00019661,2]
[408027027,1773046241172,-500.0,0.00019661,2]
[408027028,1773046241181,-500.0,0.00019661,2]
[408027029,1773046241192,-500.0,0.00019661,2]
[408027030,1773046241201,-151.0,0.00019661,2]
[408027031,1773046241210,-151.0,0.00019661,2]
[408027032,1773046241219,-500.0,0.00019661,2]
[408027033,1773046241228,-151.0,0.00019661,2]
[408027034,1773046241237,-500.0,0.00019661,2]
[408027035,1773046241247,-151.0,0.00019661,2]
[408027036,1773046241257,-500.0,0.00019661,2]
[408027037,1773046241267,-151.0,0.00019661,2]
[408027038,1773046241277,-500.0,0.00019661,2]
[408027039,1773046241286,-151.0,0.00019661,2]
[408027040,1773046241295,-500.0,0.00019661,2]
[408027041,1773046241304,-151.0,0.00019661,2]
[408027042,1773046241313,-500.0,0.00019661,2]
[408027043,1773046241322,-151.0,0.00019661,2]
[408027044,1773046241331,-495.74462624,0.00019661,2]
[408027045,1773046241341,-151.0,0.00019661,2]
[408027046,1773046241351,-151.0,0.00019661,2]
[408027047,1773046241362,-151.0,0.00019661,2]
[408027048,1773046241372,-290.26104003,0.00019661,2]
[408027049,1773046241382,-500.0,0.00019661,2]
[408027050,1773046241391,-500.0,0.00019661,2]